[Event "Satranc Arena IM Series-1 2024"]
[Site "Izmir"]
[Date "2024.03.18"]
[Round "2.1"]
[White "Aydin, Gulenay"]
[Black "Gur, Ali"]
[Result "0-1"]
[ECO "B78"]
[WhiteElo "2152"]
[BlackElo "1848"]
[Annotator "RC"]
[PlyCount "76"]
[EventDate "2024.03.18"]
[EventCountry "TUR"]
[SourceTitle "playchess.com"]
[Source "ChessBase"]
[SourceQuality "1"]
[TimeControl "5400+30"]

1. e4 {[%emt 0:00:08]} c5 {[%emt 0:00:06]} 2. Nf3 {[%emt 0:00:04]} d6 {[%emt 0:00:07]} 3. d4 {[%emt 0:03:01]} cxd4 {[%emt 0:00:03]} 4. Nxd4 {[%emt 0:00:24]} Nf6 {[%emt 0:00:06]} 5. Nc3 {[%emt 0:00:10]} g6 {[%emt 0:00:05]} 6. Be3 {[%emt 0:03:26]} Bg7 {[%emt 0:00:03]} 7. f3 {[%emt 0:04:56]} O-O {[%emt 0:00:43]} 8. Qd2 {[%emt 0:00:52]} Nc6 {[%emt 0:00:24]} 9. Bc4 {[%emt 0:01:06]} Bd7 {[%emt 0:01:16]} 10. O-O-O {[%emt 0:00:12]} Ne5 {[%emt 0:00:47]} 11. Bb3 {[%emt 0:00:38]} Rc8 {[%emt 0:00:25]} 12. h4 {[%emt 0:00:07]} Nc4 {[%emt 0:03:05]} 13. Bxc4 {[%emt 0:00:14]} Rxc4 {[%emt 0:00:03]} 14. h5 {[%emt 0:11:54]} a6 {[%emt 0:05:04]} 15. Nb3 {[%emt 0:08:05]} Qc7 {[%emt 0:20:27]} 16. Bh6 {[%emt 0:07:16]} Be6 {[%emt 0:11:43]} 17. g4 {[%emt 0:05:10]} Bxh6 {[%emt 0:10:24]} 18. Qxh6 {[%emt 0:00:04]} Rc8 {[%emt 0:00:42]} 19. hxg6 {[%emt 0:00:35]} fxg6 {[%emt 0:00:55]} 20. Rd3 {[%emt 0:24:22]} Bf7 {[%emt 0:01:27]} 21. f4 {[%emt 0:03:00]} b5 {[%emt 0:02:21]} 22. g5 {[%emt 0:05:01]} Nh5 {[%emt 0:00:17]} 23. f5 {[%emt 0:00:17]} d5 {[%emt 0:06:58]} 24. Nxd5 {[%emt 0:14:10]} Rxc2+ {[%emt 0:00:15]} 25. Kb1 {[%emt 0:00:01]} Qe5 {[%emt 0:02:09]} 26. Rd4 {[%emt 0:02:58]} R2c4 {[%emt 0:07:57]} 27. Rxh5 {[%emt 0:00:57]} Rxd4 {[%emt 0:12:17]} 28. Qxh7+ {[%emt 0:00:07]} Kf8 {[%emt 0:00:02]} 29. Qh8+ {[%emt 0:01:07]} Bg8 {[%emt 0:00:06]} 30. Qh6+ {[%emt 0:04:14]} Ke8 {[%emt 0:01:33]} 31. Qxg6+ {[%emt 0:00:21]} Kd7 {[%emt 0:00:53]} 32. Nb6+ {[%emt 0:00:27]} Kc7 {[%emt 0:00:12]} 33. Nxd4 {[%emt 0:00:57]} Qxd4 {[%emt 0:00:26]} 34. Kc1 {[%emt 0:00:32]} Qe3+ {[%emt 0:00:28]} 35. Kc2 {[%emt 0:00:32]} Qxe4+ {[%emt 0:00:40]} 36. Kc1 {[%emt 0:00:14]} Rd8 {[%emt 0:01:01]} 37. Rh3 {[%emt 0:00:40]} Qe1+ {[%emt 0:00:23]} 38. Kc2 {[%emt 0:00:03]} Qd2+ {[%emt 0:00:07]} 0-1

[Event "Satranc Arena IM Series-1 2024"]
[Site "Izmir"]
[Date "2024.03.18"]
[Round "2.2"]
[White "Baltag, Iulian"]
[Black "Kazimova, Narmin"]
[Result "1-0"]
[ECO "B42"]
[WhiteElo "2412"]
[BlackElo "2147"]
[Annotator "TA"]
[PlyCount "117"]
[EventDate "2024.03.18"]
[EventCountry "TUR"]
[SourceTitle "playchess.com"]
[Source "ChessBase"]
[SourceQuality "1"]
[TimeControl "5400+30"]

{[%evp 13,117,58,43,45,43,48,38,29,22,30,51,52,55,50,76,21,22,22,31,18,50,35,37,0,0,0,0,0,0,0,0,0,0,0,0,0,0,0,0,0,0,0,0,0,17,27,46,46,120,115,116,129,155,152,156,153,145,144,146,148,143,130,146,144,256,254,225,243,237,263,291,280,319,337,337,329,324,320,371,371,364,356,512,451,527,523,550,456,736,739,765,586,810,668,800,656,642,444,406,393,1887,1561,2176,1612,2538,2291]} 1. e4 {[%emt 0:00:04]} c5 {[%emt 0:00:06]} 2. Nf3 {[%emt 0:02:01]} e6 {[%emt 0:00:06]} 3. d4 {[%emt 0:00:41]} cxd4 {[%emt 0:00:08]} 4. Nxd4 {[%emt 0:00:04]} a6 {[%emt 0:00:51]} 5. Bd3 {[%emt 0:01:16]} Nc6 {[%emt 0:02:09]} 6. Nxc6 {[%emt 0:00:58]} bxc6 {[%emt 0:03:01]} 7. c4 {[%emt 0:00:23]} Nf6 {[%emt 0:02:25]} 8. Nc3 {[%emt 0:00:26]} e5 {[%emt 0:04:54]} 9. O-O {[%emt 0:01:37]} Bc5 {[%emt 0:01:57]} 10. Qf3 {[%emt 0:02:18] White is slightly better.} d6 {[%emt 0:04:59]} 11. Be3 {[%emt 0:00:28]} Bxe3 {[%emt 0:14:10]} 12. Qxe3 {[%emt 0:01:05]} O-O {[%emt 0:00:23]} 13. Rad1 {[%emt 0:02:37]} Rb8 {[%emt 0:07:08]} 14. c5 {[%emt 0:04:50]} (14. b3 $16) 14... Rxb2 $11 {[%emt 0:13:06]} 15. Bc4 {[%emt 0:01:19]} Ng4 {[%emt 0:02:01]} 16. Qg3 {[%emt 0:01:45]} Rb4 {[%emt 0:06:32] Inhibits Na4.} 17. Bb3 {[%emt 0:02:18]} Rd4 {[%emt 0:01:22]} 18. cxd6 {[%emt 0:03:59]} Qxd6 {[%emt 0:00:54]} 19. Rxd4 {[%emt 0:01:03]} Qxd4 {[%emt 0:00:02]} 20. Rd1 {[%emt 0:00:33]} Qc5 {[%emt 0:01:05]} 21. h3 {[%emt 0:02:13]} Nf6 {[%emt 0:00:02]} (21... Nxf2 $2 22. Qxf2 Qe7 (22... Qxc3 23. Qxf7+ Rxf7 24. Rd8#) 23. Na4 $18) 22. Qd3 {[%emt 0:01:42]} Be6 {[%emt 0:01:54]} 23. Na4 {[%emt 0:05:00]} Qb4 {[%emt 0:01:17]} 24. f3 {[%emt 0:00:58]} Bxb3 {[%emt 0:03:04]} 25. Qxb3 {[%emt 0:01:46]} Qxb3 {[%emt 0:07:08]} 26. axb3 {[%emt 0:00:08][%mdl 4096] Endgame. KRN-KRN} h6 {[%emt 0:00:16]} 27. Rd6 {[%emt 0:01:32]} Rb8 {[%emt 0:00:27]} 28. Nc5 {[%emt 0:01:27]} Rb6 {[%emt 0:01:09]} 29. Nd3 {[%emt 0:00:29]} Rb5 {[%emt 0:11:09]} 30. Rxc6 {[%emt 0:00:19]} Nd7 {[%emt 0:05:15] [#] White stays focused until the end.} (30... Nh5 $14) 31. Rc8+ $1 $16 {[%emt 0:00:53]} (31. Rxa6 $6 Rxb3 32. Rd6 Rb7 $11) 31... Kh7 {[%emt 0:00:48]} 32. Rc7 {[%emt 0:01:21]} Nb6 {[%emt 0:00:25]} 33. b4 {[%emt 0:00:32]} f6 {[%emt 0:04:09]} 34. Ra7 {[%emt 0:00:31] White is more active.} Nc4 {[%emt 0:00:09]} 35. Rxa6 {[%emt 0:00:24]} Nd2 {[%emt 0:02:00]} 36. Ra3 {[%emt 0:02:02]} Rb8 {[%emt 0:01:19]} 37. Rc3 {[%emt 0:01:56]} Ra8 {[%emt 0:00:30]} 38. Rc2 {[%emt 0:01:14]} Nb3 {[%emt 0:00:03] [#]} (38... Nb1 $16 39. Rc1 Nd2) 39. Rb2 $1 $18 {[%emt 0:01:55]} Nd4 {[%emt 0:00:40]} 40. b5 {[%emt 0:00:21][%cal Bb4b5,Bb5b6,Bb6b7][%mdl 32]} Ra3 {[%emt 0:00:47]} 41. Ne1 {[%emt 0:01:09]} ({Not} 41. Nc5 Ra5 $11) 41... Kg6 {[%emt 0:00:37]} 42. b6 {[%emt 0:00:12] Dodges Ra7} Nc6 {[%emt 0:00:29]} 43. b7 {[%emt 0:00:16]} Nb8 {[%emt 0:00:15]} 44. Nc2 {[%emt 0:00:45] Wards off Ra1+} Rc3 {[%emt 0:00:30]} 45. Kf2 {[%emt 0:00:10]} Kf7 {[%emt 0:00:28]} 46. Ne3 {[%emt 0:00:10]} h5 {[%emt 0:00:44]} 47. h4 {[%emt 0:01:17][%cal Bh3h4,Bh4h5][%mdl 32]} Ke6 {[%emt 0:00:15]} (47... Rd3 {was necessary.} 48. Rc2 Rd7) 48. Nd5 {[%emt 0:00:38]} Rc6 {[%emt 0:00:50]} 49. g4 {[%emt 0:07:46]} hxg4 {[%emt 0:00:07]} 50. fxg4 {[%emt 0:00:04]} Kd6 {[%emt 0:00:37]} (50... Rc4 $142 51. Kf3 Rc1) 51. h5 {[%emt 0:02:18]} Rc4 {[%emt 0:00:44]} 52. Kf3 {[%emt 0:00:17] Rb6+ is the strong threat.} Ra4 {[%emt 0:00:31]} 53. Rb3 {[%emt 0:00:38] Repels Ra3} Kc6 {[%emt 0:00:30] [#]} 54. g5 $1 {[%emt 0:00:56][%mdl 512]} fxg5 {[%emt 0:00:20]} 55. Rb6+ {[%emt 0:00:23]} Kc5 {[%emt 0:00:26]} 56. Rg6 {[%emt 0:00:20][%csl LRg5,LRg7]} Kd4 $2 {[%emt 0:00:43]} (56... g4+ 57. Rxg4 (57. Kxg4 Rxe4+ 58. Kf5 Kxd5 $11) 57... Ra3+ 58. Kg2 Ra2+ 59. Kh3 Ra1 60. Rxg7 Rh1+ 61. Kg2 (61. Kg4 Rg1+ 62. Kf5 Rxg7 $11) 61... Rxh5) 57. Rxg7 {[%emt 0:00:08] White is clearly winning.} Ra3+ {[%emt 0:00:08]} 58. Kg4 {[%emt 0:00:11]} Kxe4 {[%emt 0:00:15]} 59. Nf6+ {[%emt 0:00:06] Weighted Error Value: White=0.24 (precise) /Black=0.22 (precise) .  Mistake:       	White=1     	Black=5      Inaccurate:     	White=1     	Black=3      OK:         	White=21    	Black=14     Best:        	White=4     	---        Strong:       	White=2     	---} 1-0

[Event "Satranc Arena IM Series-1 2024"]
[Site "Izmir"]
[Date "2024.03.18"]
[Round "2.3"]
[White "Ozsakallioglu, Okan"]
[Black "Gunduz, Umut Erdem"]
[Result "1-0"]
[ECO "B31"]
[WhiteElo "2365"]
[BlackElo "2314"]
[Annotator "TA"]
[PlyCount "87"]
[EventDate "2024.03.18"]
[EventCountry "TUR"]
[SourceTitle "playchess.com"]
[Source "ChessBase"]
[SourceQuality "1"]
[TimeControl "5400+30"]

{[%evp 9,87,24,24,18,23,21,14,21,45,42,47,41,50,27,69,72,72,82,77,82,83,91,90,92,112,97,92,93,142,71,72,65,65,18,19,26,132,123,105,115,107,116,129,100,145,133,174,184,256,258,245,187,191,187,345,367,333,346,366,341,377,370,584,576,568,568,540,545,982,938,1025,1016,29959,29955,29965,29963,29962,29947,6299,5513]} 1. e4 {[%emt 0:00:11]} c5 {[%emt 0:00:39]} 2. Nf3 {[%emt 0:00:42]} Nc6 {[%emt 0:00:07]} 3. Bb5 {[%emt 0:00:13]} g6 {[%emt 0:00:12]} 4. Bxc6 {[%emt 0:00:07]} dxc6 {[%emt 0:00:02]} 5. d3 {[%emt 0:00:12]} Qc7 {[%emt 0:00:55]} 6. h3 {[%emt 0:02:39]} e5 {[%emt 0:00:16]} 7. Be3 {[%emt 0:01:56]} Nf6 {[%emt 0:00:41][%cal Bg8f6,Bf6d7,Bd7e5][%mdl 32]} 8. Qd2 {[%emt 0:03:01] The position is equal.} Be7 {[%emt 0:06:49]} 9. a4 {[%emt 0:04:07]} a5 {[%emt 0:02:28]} 10. Na3 {[%emt 0:03:02]} Nd7 {[%emt 0:02:39]} 11. O-O {[%emt 0:03:07]} O-O {[%emt 0:06:01]} 12. Nh2 {[%emt 0:05:50][%cal Bf3h2,Bh2g4,Bg4e5][%mdl 32] White has more active pieces.} Re8 {[%emt 0:03:26]} 13. f4 {[%emt 0:02:44]} exf4 {[%emt 0:01:45]} 14. Bxf4 {[%emt 0:00:06]} Ne5 {[%emt 0:00:17]} 15. b3 {[%emt 0:06:34]} Be6 {[%emt 0:02:34]} 16. Nc4 {[%emt 0:03:27]} Bxc4 {[%emt 0:00:36]} 17. Ng4 $1 {[%emt 0:00:01]} (17. dxc4 $6 Rad8 18. Qc3 Bd6 $11) 17... f6 {[%emt 0:03:45]} 18. bxc4 {[%emt 0:01:36]} Rf8 {[%emt 0:06:16]} 19. Bxe5 {[%emt 0:02:33]} (19. Rab1 $142) 19... fxe5 $16 {[%emt 0:00:45]} 20. Qc3 {[%emt 0:00:05]} Bg5 {[%emt 0:00:49]} 21. Qxe5 {[%emt 0:03:18]} (21. g3 $14) 21... Qxe5 $11 {[%emt 0:00:02]} 22. Nxe5 {[%emt 0:00:07]} Bf6 {[%emt 0:06:47] [#] White now steadily converts the win.} (22... Be3+ $1 $11 {keeps the balance.} 23. Kh1 Bd4) 23. Rxf6 $1 $16 {[%emt 0:00:29][%mdl 512]} Rxf6 {[%emt 0:00:02][%mdl 4096] Endgame. KRR-KRN} 24. Rb1 {[%emt 0:00:09]} Re8 {[%emt 0:00:31]} 25. Nd7 {[%emt 0:00:18]} Rf7 {[%emt 0:00:15]} 26. Nxc5 {[%emt 0:00:06]} Ree7 {[%emt 0:00:14]} 27. d4 {[%emt 0:00:48]} Kg7 {[%emt 0:00:32]} 28. e5 {[%emt 0:00:09][%cal Be4e5,Be5e6][%mdl 32]} Rf4 {[%emt 0:00:51]} (28... h5 {might work better.} 29. c3 Kf8) 29. c3 $18 {[%emt 0:00:16]} ({Stronger than} 29. Nxb7 Rxd4 30. Nxa5 Re6 $17) (29. Rxb7 Rxb7 30. Nxb7 (30. Ne6+ $2 Kg8 $19) 30... Rxd4 31. Nxa5 Rd2 $19) 29... Rff7 {[%emt 0:00:18]} 30. e6 {[%emt 0:00:16]} Rf5 {[%emt 0:00:09]} 31. Rxb7 {[%emt 0:00:39]} ({Weaker is} 31. Nxb7 Rxe6 32. c5 Rf8 $11) 31... Rxb7 {[%emt 0:00:02]} (31... Kf6) 32. Nxb7 {[%emt 0:00:07] Hoping for Nd6. KR-KN} Kf6 {[%emt 0:00:06] [#]} 33. Nd8 {[%emt 0:00:05]} Ke7 {[%emt 0:00:46]} 34. Nxc6+ {[%emt 0:00:05]} Kxe6 {[%emt 0:00:02]} 35. c5 {[%emt 0:00:40][%cal Bc4c5,Bc5c6][%mdl 32]} Rf4 {[%emt 0:00:37]} (35... Kd7 {keeps fighting.} 36. Nxa5 Rf4) 36. c4 {[%emt 0:00:23][%cal Bc3c4,Bc4c5][%mdl 32]} Kd7 {[%emt 0:00:28]} 37. d5 {[%emt 0:00:15][%cal Bd4d5,Bd5d6,Bd6d7][%mdl 32]} (37. Nxa5 Rxd4 38. Kf2 Rd2+ 39. Kg3 Kc7 $19 (39... Ra2 $2 40. Nb7 $19)) 37... Kc7 {[%emt 0:00:22]} 38. Nxa5 {[%emt 0:00:40]} Rd4 {[%emt 0:00:07]} 39. c6 {[%emt 0:00:58]} Rd1+ {[%emt 0:00:02]} 40. Kf2 {[%emt 0:00:06]} Ra1 {[%emt 0:00:05]} 41. c5 {[%emt 0:00:08]} Rxa4 {[%emt 0:00:13]} 42. d6+ {[%emt 0:00:05]} Kc8 {[%emt 0:00:51]} 43. d7+ {[%emt 0:00:09]} Kc7 {[%emt 0:00:08]} 44. Nb7 {[%emt 0:00:04] Weighted Error Value: White=0.08 (flawless) /Black=0.44.  Mistake:       	White=2     	Black=4      Inaccurate:     	---       	Black=4      OK:         	White=14    	Black=12     Best:        	White=3     	Black=2      Strong:       	White=1     	---        Brilliant:      	White=1     	---} 1-0

[Event "Satranc Arena IM Series-1 2024"]
[Site "Izmir"]
[Date "2024.03.18"]
[Round "2.4"]
[White "Yermolinsky, Alex"]
[Black "Yalcinkaya, Efe"]
[Result "1/2-1/2"]
[ECO "A57"]
[WhiteElo "2421"]
[BlackElo "2085"]
[Annotator "TA"]
[PlyCount "103"]
[EventDate "2024.03.18"]
[EventCountry "TUR"]
[SourceTitle "playchess.com"]
[Source "ChessBase"]
[SourceQuality "1"]
[TimeControl "5400+30"]

{[%evp 15,103,40,52,43,48,42,50,39,45,26,40,25,62,25,85,63,71,73,75,73,69,75,91,80,80,69,66,43,64,45,46,49,37,47,17,0,13,23,28,35,104,6,8,2,4,6,20,-5,0,0,0,0,0,-34,-36,-39,-49,-179,-127,-136,-129,-134,-130,-137,-128,-122,-131,-125,-123,-124,-128,-124,-60,-68,-60,-60,-60,-62,-34,-60,-35,-39,-39,-47,-27,-60,0,0,0,0]} 1. d4 {[%emt 0:00:04]} Nf6 {[%emt 0:00:05]} 2. c4 {[%emt 0:00:06]} c5 {[%emt 0:00:03]} 3. d5 {[%emt 0:00:06]} b5 {[%emt 0:00:04]} 4. Nf3 {[%emt 0:00:47]} bxc4 {[%emt 0:00:16]} 5. Nc3 {[%emt 0:00:07]} d6 {[%emt 0:00:24]} 6. e4 {[%emt 0:00:08]} Nbd7 {[%emt 0:00:06]} 7. Bxc4 {[%emt 0:00:20]} g6 {[%emt 0:00:14]} 8. O-O {[%emt 0:01:03]} Bg7 {[%emt 0:00:06]} 9. h3 {[%emt 0:00:09]} O-O {[%emt 0:00:06]} 10. Re1 {[%emt 0:09:38]} Rb8 {[%emt 0:04:48]} 11. Qc2 {[%emt 0:03:42] Weiß steht etwas besser.} Nh5 {[%emt 0:01:45]} 12. Be2 {[%emt 0:04:57]} Qb6 {[%emt 0:13:30]} 13. Na4 {[%emt 0:12:13]} Qc7 {[%emt 0:02:14]} 14. Be3 {[%emt 0:02:44]} Nhf6 {[%emt 0:10:14]} (14... Ne5 $11 {bleibt in der Remisbreite.}) 15. Rad1 {[%emt 0:03:41]} Nb6 {[%emt 0:02:50][%cal Bd7b6,Bb6a8,Ba8c7][%mdl 32]} 16. Nc3 {[%emt 0:01:07]} Nfd7 {[%emt 0:00:51]} 17. Bf4 {[%emt 0:11:21]} Na8 {[%emt 0:09:18]} 18. b3 {[%emt 0:05:20]} Qb6 {[%emt 0:11:13]} 19. Bc4 {[%emt 0:06:45]} f6 {[%emt 0:12:49]} 20. Be3 {[%emt 0:03:39] Weiß hat aktiveres Spiel. Schwarz ist schwach auf den weissen Feldern} Ba6 {[%emt 0:01:22]} 21. Nd2 {[%emt 0:00:17]} Ne5 {[%emt 0:05:06]} 22. Ne2 {[%emt 0:14:41]} Nc7 {[%emt 0:02:19]} 23. f4 {[%emt 0:04:35]} Nxc4 {[%emt 0:01:36]} 24. Nxc4 {[%emt 0:00:29]} Bxc4 {[%emt 0:00:59]} 25. Qxc4 {[%emt 0:00:33]} Qa5 {[%emt 0:00:19]} 26. Qc2 {[%emt 0:01:32]} f5 {[%emt 0:09:09]} 27. Bd2 {[%emt 0:02:51]} Qa6 {[%emt 0:01:00] [#]} (27... Qb6 $14) 28. Bc3 {[%emt 0:01:06]} ({Weiss kommt nicht vorbei an} 28. exf5 $1 $16 Rxf5 29. Ng3) 28... fxe4 $11 {[%emt 0:03:37]} 29. Qxe4 {[%emt 0:01:21]} Rf7 {[%emt 0:01:05]} 30. Bxg7 {[%emt 0:05:36]} Kxg7 {[%emt 0:00:11] [#]} 31. f5 $1 {[%emt 0:00:34]} Rxf5 {[%emt 0:01:38]} (31... Qxa2 32. fxg6) 32. Qxe7+ {[%emt 0:01:00]} Rf7 {[%emt 0:00:03]} 33. Qe3 {[%emt 0:01:04]} Qxa2 {[%emt 0:05:02]} 34. Qc3+ {[%emt 0:01:39]} Kg8 {[%emt 0:00:46]} 35. Qg3 {[%emt 0:00:56]} Re8 $36 {[%emt 0:01:59][%mdl 2048] Schwarz steht aktiver.} 36. Nc3 {[%emt 0:01:42]} ({Vorzuziehen ist} 36. Nf4 $15) 36... Rxe1+ {[%emt 0:00:04]} (36... Qxb3 $19 37. Kh2 a6 38. Rxe8+ Nxe8) 37. Rxe1 $17 {[%emt 0:00:07]} Qxb3 {[%emt 0:00:31] ...Nb5 ist eine echte Drohung.} 38. Rb1 {[%emt 0:00:21]} Qc4 {[%emt 0:00:15]} 39. Rb8+ {[%emt 0:01:04]} Kg7 {[%emt 0:00:03]} 40. Rd8 {[%emt 0:00:16]} Nxd5 {[%emt 0:00:54]} 41. Nxd5 {[%emt 0:00:11]} Qxd5 {[%emt 0:00:08]} 42. Rxd6 {[%emt 0:00:02][%mdl 4096] Endspiel. KQR-KQR} Qf5 {[%emt 0:01:37]} 43. Rc6 {[%emt 0:01:10]} Qf1+ {[%emt 0:00:44]} ({Besser ist} 43... Qe4 $17 44. Qc3+ Qd4+ 45. Qxd4+ cxd4) 44. Kh2 $15 {[%emt 0:00:01]} Qf4 {[%emt 0:00:24]} (44... Qf2 {ist interessant.} 45. Qg5 Qf5 46. Qe3 Qf4+) 45. Rxc5 {[%emt 0:00:04]} Qxg3+ {[%emt 0:00:15]} 46. Kxg3 {[%emt 0:00:03] KR-KR} a6 {[%emt 0:00:27]} 47. Ra5 {[%emt 0:00:26]} Ra7 {[%emt 0:00:03]} 48. Kf4 {[%emt 0:00:19]} Kf6 {[%emt 0:00:04]} 49. h4 {[%emt 0:01:21]} Ke6 {[%emt 0:00:48]} 50. h5 {[%emt 0:01:03]} Kd6 {[%emt 0:01:24]} ({Günstiger ist} 50... gxh5 $15 51. Rxh5 Kd6) 51. hxg6 $11 {[%emt 0:00:11]} hxg6 {[%emt 0:00:02]} 52. Kg5 {[%emt 0:00:29] Und Weiß wird für den zähen Widerstand belohnt.   Gewichteter Fehlerwert: Weiß=0.15 (sehr präzise) /Schwarz=0.15 (sehr präzise) .  Fehler:       	Weiß=2     	Schwarz=5     Ungenau:       	Weiß=4     	Schwarz=2     OK:         	Weiß=14    	Schwarz=15    Bester:       	Weiß=4     	Schwarz=2} 1/2-1/2

[Event "Satranc Arena IM Series-1 2024"]
[Site "Izmir"]
[Date "2024.03.18"]
[Round "2.5"]
[White "David, Alexandru-Vasile"]
[Black "Kuru, Atilla"]
[Result "1/2-1/2"]
[ECO "D12"]
[WhiteElo "2360"]
[BlackElo "2246"]
[Annotator "TA"]
[PlyCount "60"]
[EventDate "2024.03.18"]
[EventCountry "TUR"]
[SourceTitle "playchess.com"]
[Source "ChessBase"]
[SourceQuality "1"]
[TimeControl "5400+30"]

{[%evp 11,60,8,8,9,6,2,10,14,10,9,17,0,6,-17,11,9,8,6,14,0,21,14,14,16,31,20,18,17,14,9,9,10,39,6,23,8,12,13,9,26,8,6,6,6,6,6,6,6,6,6,14]} 1. d4 {[%emt 0:00:19]} d5 {[%emt 0:01:04]} 2. c4 {[%emt 0:00:08]} c6 {[%emt 0:00:07]} 3. Nf3 {[%emt 0:00:07]} Nf6 {[%emt 0:00:04]} 4. e3 {[%emt 0:00:32]} Bf5 {[%emt 0:04:35]} 5. Nc3 {[%emt 0:01:50]} e6 {[%emt 0:00:15]} 6. Be2 {[%emt 0:00:14]} h6 {[%emt 0:00:26]} 7. Bd3 {[%emt 0:00:24]} Bxd3 {[%emt 0:00:31]} 8. Qxd3 {[%emt 0:00:08]} Bd6 {[%emt 0:00:49]} 9. O-O {[%emt 0:00:21]} O-O {[%emt 0:00:05]} 10. b3 {[%emt 0:01:37]} Nbd7 {[%emt 0:00:11]} 11. Bb2 {[%emt 0:00:20]} Re8 {[%emt 0:00:55]} 12. e4 {[%emt 0:00:54]} dxe4 {[%emt 0:00:12]} 13. Nxe4 {[%emt 0:00:08]} Nxe4 {[%emt 0:00:16]} 14. Qxe4 {[%emt 0:00:05]} Nf6 {[%emt 0:02:31]} 15. Qc2 {[%emt 0:03:59]} c5 {[%emt 0:01:01]} 16. Rad1 {[%emt 0:00:52] [#] dxc5 is the strong threat.} cxd4 {[%emt 0:00:16]} 17. Bxd4 {[%emt 0:00:57] Black must now prevent Be5.} Qc7 {[%emt 0:05:39]} 18. Bxf6 {[%emt 0:14:43]} gxf6 {[%emt 0:00:03]} 19. Rd3 {[%emt 0:00:07]} Rad8 {[%emt 0:00:28]} 20. Rfd1 {[%emt 0:02:05] Strongly threatening Qd2.} Bc5 {[%emt 0:02:11]} 21. g3 {[%emt 0:01:13]} Kg7 {[%emt 0:03:06]} 22. Ne1 {[%emt 0:06:24]} (22. Nd4 $5) 22... Rxd3 {[%emt 0:01:51]} 23. Nxd3 {[%emt 0:00:35]} Rd8 {[%emt 0:00:16]} (23... Bd4 {is more complex.} 24. Nf4 Rd8 25. Kg2 f5) 24. Nxc5 {[%emt 0:00:41]} Rxd1+ {[%emt 0:00:06]} 25. Qxd1 {[%emt 0:00:03]} Qxc5 $11 {[%emt 0:00:01] KQ-KQ} 26. Qd7 {[%emt 0:02:03] The position is equal.} Qb4 {[%emt 0:00:18]} 27. Kg2 {[%emt 0:00:25]} a6 {[%emt 0:00:22]} 28. h4 {[%emt 0:00:47]} h5 {[%emt 0:00:38]} 29. Qd1 {[%emt 0:01:16]} Qa5 {[%emt 0:00:43]} 30. Qf3 {[%emt 0:00:11]} b6 {[%emt 0:01:03] An uneventful encounter.   Weighted Error Value: White=0.07 (flawless) /Black=0.06 (flawless) .  Inaccurate:     	White=1     	Black=2      OK:         	White=3     	Black=13} 1/2-1/2